Cogmind - Beta 13 @@@ ROGUE MODE // 2024.04.08 @ 19:12:22 Player: Ham Result: Destroyed by Y-45 Defender with Beam Rifle Performance ------------- Evolutions (1) 500 Regions Visited (2) 400 Robots Destroyed (31) 155 Value Destroyed (738) 738 Prototype IDs (0) 0 Alien Tech Used (0) 0 Bonus (25) 25 TOTAL SCORE: 1818 Bonus ------- High Alert Combat Kills 25 Cogmind --------- Core Integrity 0/400 Matter 17/300 Energy 100/100 System Corruption 0% Temperature Cool (15) Movement Core (350) Ox6 Location -9/Materials Parts ------- > --- POWER (1) -------- (None) > --- PROPULSION (3) --- (None) > --- UTILITY (3) ------ Large Storage Unit Terrain Scanner > --- WEAPON (2) ------- (None) > --- INVENTORY (15) --- Ion Engine Weight Redist. System Signal Interpreter Improved Terrain Scanner Terrain Scan Processor Seismic Detector EM Pulse Gun Medium Laser Light EM Pulse Cannon Assault Rifle Heavy Assault Rifle Grenade Launcher Peak State ------------ > --- POWER ------------ Ion Engine > --- PROPULSION ------- Wheel Wheel > --- UTILITY ---------- Large Storage Unit Signal Interpreter Seismic Detector > --- WEAPON ----------- Light Assault Rifle Light Assault Rifle > --- INVENTORY -------- Light Ion Engine Improved Terrain Scanner EM Pulse Gun Medium Laser Assault Rifle Light Assault Rifle Grenade Launcher Grenade Launcher Grenade Launcher [Rating: 9] Favorites ----------- Power Light Ion Engine Engine Light Ion Engine Propulsion Wheel Wheel Wheel Utility Large Storage Unit Device Seismic Detector Storage Large Storage Unit Processor Signal Interpreter Weapon Light Assault Rifle Energy Gun EM Pulse Gun Ballistic Gun Light Assault Rifle Launcher Grenade Launcher Build | -11 -10 -9 ------- Run | Yrd Mat Mat Slots Evolved 2 | . . 2 Power . | . . . Propulsion 1 | . . 1 Utility 1 | . . 1 Weapon . | . . . Parts Attached 24 | 6 6 12 Power 3 | 1 1 1 Engine 3 | 1 1 1 Core . | . . . Reactor . | . . . Propulsion 7 | 2 1 4 Treads . | . . . Leg . | . . . Wheel 7 | 2 1 4 Hover . | . . . Flight . | . . . Utility 5 | 1 2 2 Device 2 | . 1 1 Storage 2 | 1 1 . Processor 1 | . . 1 Hackware . | . . . Protection . | . . . Artifact . | . . . Weapon 9 | 2 2 5 Energy Gun 2 | 1 1 . Energy Cannon . | . . . Ballistic Gun 4 | 1 1 2 Ballistic Cannon . | . . . Launcher 3 | . . 3 Special Weapon . | . . . Impact Weapon . | . . . Slashing Weapon . | . . . Piercing Weapon . | . . . Special Melee Weapon . | . . . Unidentified Prototypes . | . . . Parts Lost 12 | . 3 9 Power 2 | . 1 1 Propulsion 4 | . 1 3 Utility . | . . . Weapon 6 | . 1 5 Highest Loss Streak 5 | . 3 5 To Critical Strikes . | . . . Average Slot Usage (%) 81 | . 96 65 Engine 11 | . 13 9 Wheel 21 | . 27 14 Device 10 | . 11 9 Storage 12 | . 14 11 Energy Gun 3 | . 6 . Ballistic Gun 17 | . 21 14 Launcher 1 | . . 3 Naked Turns . | . . . Heaviest Build 31 | 11 29 31 Greatest Support 30 | 20 20 30 Greatest Overweight (x) 10 | . 2 10 Average Overweight (x) . | . . 1 Largest Inventory Capacity 15 | 8 15 15 Average Capacity 13 | 7 13 15 Most Carried 14 | 5 10 14 Average Carried 7 | 3 5 11 Final Capacity 15 | 8 15 15 Final Carried 12 | 5 10 12 Class Distribution -------------------- 75% | Mutant 24% | Scavenger-Mutant Dominant Class ---------------- Mutant | -10/Materials Scavenger-Mutant | -9/Materials Resources | -11 -10 -9 ----------- Run | Yrd Mat Mat Matter Collected 489 | 254 113 122 Remotely . | . . . Salvage Created 742 | 102 163 477 Parts 52 | 4 12 36 Haulers Intercepted 1 | . . 1 Recyclers Shooed 1 | . . 1 Parts Field Recycled . | . . . Retrieved Matter . | . . . Parts Self-Destructed . | . . . Prevented . | . . . Kills | -11 -10 -9 ------- Run | Yrd Mat Mat Combat Hostiles Destroyed 18 | . 5 13 Guns 8 | . 5 3 AOE 10 | . . 10 Classes Destroyed 11 | 2 4 5 Worker 3 | . . 3 Builder 2 | . . 2 Tunneler 1 | 1 . . Hauler 1 | . . 1 Recycler 2 | 1 . 1 Operator 1 | . 1 . Watcher 3 | . 1 2 Swarmer 3 | . 3 . Grunt 10 | . 2 8 Brawler 2 | . . 2 Sentry 3 | . . 3 Best Kill Streak 12 | 1 3 12 Combat Bots Only 7 | . 3 7 Max Kills in Single Turn 4 | 1 1 4 Gunslinging . | . . . Exploded 2 | . . 2 Melee . | . . . Uniques/NPCs Destroyed . | . . . Combat | -11 -10 -9 -------- Run | Yrd Mat Mat Hostile Shots Fired 148 | . 40 108 Missed 40 | . 8 32 Damage Taken 1415 | . 382 1033 Core 488 | . 82 406 Absorbed by Shields . | . . . Core Remaining (%) 83 | 100 67 . Volleys Fired 100 | 10 37 53 Largest 2 | 2 2 2 Hottest 63 | 60 60 63 Shots Fired 172 | 20 72 80 Gun 145 | 20 72 53 Cannon . | . . . Launcher 27 | . . 27 Special . | . . . Kinetic 115 | 10 52 53 Thermal . | . . . Explosive 27 | . . 27 Electromagnetic 30 | 10 20 . Robot Hit Streak 7 | 5 4 7 Robot Miss Streak 3 | 3 3 3 Penetration Max . | . . . Secondary Targets 1 | . 1 . Max Gunslinging Chain 1 | . 1 . Shots Hit Robots 102 | 12 44 46 Core Hits 65 | 3 15 47 Critical Kills . | . . . Critical Parts Destroyed . | . . . Critical Strikes . | . . . Melee Attacks . | . . . Impact . | . . . Slashing . | . . . Piercing . | . . . Sneak Attacks . | . . . Combat Hostiles . | . . . Follow-up Attacks . | . . . Damage Inflicted 2116 | 161 467 1488 Guns 825 | 132 411 282 Cannons . | . . . Explosions 1291 | 29 56 1206 Melee . | . . . Ramming . | . . . Kinetic 574 | 52 240 282 Thermal 85 | 29 56 . Explosive 1206 | . . 1206 Electromagnetic 251 | 80 171 . Impact . | . . . Slashing . | . . . Piercing . | . . . Highest Corruption . | . . . Average Corruption . | . . . Corruption Purged . | . . . Corruption Blocked . | . . . Overload Shots . | . . . Overflow Damage 70 | 27 19 24 Projectiles . | . . . Explosions 70 | 27 19 24 Melee . | . . . Knockbacks . | . . . Impact . | . . . Kinetic . | . . . Secondary . | . . . Self-Inflicted Damage 98 | . 60 38 Shots 4 | . 2 2 Rammed . | . . . Targets Rammed . | . . . Kicked . | . . . Crushed . | . . . Highest Temperature 123 | 60 123 21 Average Temperature 33 | 27 49 6 Received Heat Transfer 519 | . 87 432 Siege Activations . | . . . Robots Corrupted . | . . . Combat Hostiles . | . . . Parts Fried 2 | . 2 . Impact Corruptions . | . . . Robots Melted . | . . . Combat Hostiles . | . . . Parts Melted . | . . . Heat Transferred 150 | 50 100 . Parts Sabotaged . | . . . Parts Stolen . | . . . Parts Stripped . | . . . Power Chain Reactions 3 | 1 2 . Alert | -11 -10 -9 ------- Run | Yrd Mat Mat Peak Influence 512 | 10 172 512 Initial 6 | . 6 . Average 116 | 4 90 168 Maximum Alert Level 2 | . . 2 Low Security (%) 87 | 100 100 70 Level 1 7 | . . 16 Level 2 5 | . . 12 Level 3 . | . . . Level 4 . | . . . Level 5 . | . . . High Security . | . . . Max Security . | . . . Squads Dispatched 3 | . . 3 Investigation 1 | . . 1 Extermination . | . . . Reinforcement 2 | . . 2 Assault . | . . . Garrison . | . . . Intercept . | . . . Searches Triggered . | . . . Construction Impeded . | . . . Haulers Reinforced . | . . . Active Scanning Responses . | . . . Cargo Convoy Interrupts . | . . . Stealth | -11 -10 -9 --------- Run | Yrd Mat Mat Distress Signals 3 | . 1 2 Communications Jammed . | . . . Distress Signals . | . . . Times Spotted 33 | . 11 22 Peak Tracking Total 5 | . 4 5 Tactical Retreats . | . . . Traps | -11 -10 -9 ------- Run | Yrd Mat Mat Traps Triggered 6 | . . 6 Indirectly . | . . . Trap Hack Attempts . | . . . Triggered . | . . . Disarmed . | . . . Reprogrammed . | . . . Reused . | . . . Traps Extracted . | . . . Installed . | . . . Triggered . | . . . Machines | -11 -10 -9 ---------- Run | Yrd Mat Mat Machines Disabled 5 | . 1 4 Max in Single Turn 1 | . 1 1 Machines Repaired . | . . . Machines Dismantled . | . . . Machines Sabotaged . | . . . Overloaded Fab Kills . | . . . Hacking | -11 -10 -9 --------- Run | Yrd Mat Mat Machines Accessed 7 | . 5 2 Terminals 5 | . 4 1 Fabricators . | . . . Repair Stations . | . . . Recycling Units 1 | . 1 . Scanalyzers 1 | . . 1 Garrison Access . | . . . Total Hacks 22 | . 15 7 Successful 10 | . 7 3 Failed 12 | . 8 4 Catastrophic . | . . . Database Lockouts . | . . . Manual . | . . . Terminals 14 | . 10 4 Fabricators . | . . . Repair Stations . | . . . Recycling Units 5 | . 5 . Scanalyzers 3 | . . 3 Garrison Access . | . . . Terminal Hacks 8 | . 7 1 Record 1 | . . 1 Branch Access Points 1 | . 1 . Alert Level 1 | . 1 . Dispatch Records 2 | . 2 . Maintenance Status 1 | . 1 . Investigation Status 1 | . 1 . Hauler Manifests 1 | . 1 . Fabricator Hacks . | . . . Repair Station Hacks . | . . . Recycling Unit Hacks . | . . . Scanalyzer 2 | . . 2 Insert Component 1 | . . 1 Analyze 1 | . . 1 Garrison Access Hacks . | . . . Unauthorized Hacks . | . . . Terminals . | . . . Fabricators . | . . . Repair Stations . | . . . Recycling Units . | . . . Scanalyzers . | . . . Garrison Access . | . . . Data Cores Recovered . | . . . Used . | . . . Hacking Detections 4 | . 2 2 Full Trace Events 2 | . 2 . Feedback Events . | . . . Feedback Blocked . | . . . Robot Schematics Acquired . | . . . Robots Built . | . . . Authchips . | . . . Time . | . . . Total Robot Build Rating . | . . . Part Schematics Acquired 1 | . . 1 Parts Built . | . . . Authchips . | . . . Time . | . . . Total Part Build Rating . | . . . Parts Repaired . | . . . Time . | . . . Parts Recycled . | . . . Recycled Matter . | . . . Retrieved Matter . | . . . Retrieved Components . | . . . Parts Scanalyzed 1 | . . 1 Part Schematics Acquired 1 | . . 1 Parts Damaged . | . . . Bothacking | -11 -10 -9 ------------ Run | Yrd Mat Mat Used RIF Installer . | . . . Robots Hacked . | . . . Non-combat . | . . . Combat . | . . . Robot Hacks Applied . | . . . Relay Couplers Released . | . . . Fabnet Peak Effective % . | . . . Robots Rewired . | . . . Allies Hacked . | . . . Hacks Repelled . | . . . Allies | -11 -10 -9 -------- Run | Yrd Mat Mat Total Allies . | . . . Largest Group . | . . . Highest-Rated Group . | . . . Highest-Rated Ally . | . . . Total Orders . | . . . Ally Attacks . | . . . Total Damage . | . . . Kills . | . . . Allies Corrupted . | . . . Allies Melted . | . . . Intel | -11 -10 -9 ------- Run | Yrd Mat Mat Robot Analysis Total . | . . . Derelict Logs Recovered . | . . . Drone Launches . | . . . Drone Recoveries . | . . . Exploration | -11 -10 -9 ------------- Run | Yrd Mat Mat Turns Passed 909 | 82 429 398 Spaces Moved 623 | 54 343 226 Core 29 | 19 . 10 Treads . | . . . Legs . | . . . Wheels 594 | 35 343 216 Hover . | . . . Flight . | . . . Fastest Speed 50 | 50 80 80 Average Speed 96 | 69 91 110 Slowest Speed 550 | 80 110 550 Overloaded Moves . | . . . Propulsion Burnouts . | . . . Robots Hopped . | . . . Cave-ins Triggered . | . . . Exploration Rate (%) 24 | 4 48 22 Regions Visited 2 Branch Regions . Pre-discovered Areas . | . . . Known Exits Taken . | . . . Unknown Exits Taken 2 | 1 1 . Scrap Searched . | . . . Spaces Dug . | . . . Terrain Destroyed 94 | 5 6 83 Melee . | . . . Projectile . | . . . AOE 94 | 5 6 83 Terrain Rammed . | . . . Walls Destroyed . | . . . Machines Disabled . | . . . Actions | -11 -10 -9 --------- Run | Yrd Mat Mat Total 781 | 80 396 305 Wait . | . . . Move 621 | 53 342 226 Hop . | . . . Pick Up 35 | 11 10 14 Fast Attach . | . . . Attach 23 | 6 5 12 Detach . | . . . Swap 1 | . 1 . Drop 1 | . 1 . Fire 100 | 10 37 53 Melee . | . . . Ram . | . . . Kick . | . . . Crush . | . . . Escape Stasis . | . . . Rewire . | . . . Trap . | . . . Miscellaneous . | . . . Route ------- -11/Scrapyard -10/Materials (discovered 3 exits: *Mat / *Min x2) -9/Materials History --------- Turn | Location | Event 9 | -11/Scrapyard | Discovered new exit (range 15) 83 | -11/Scrapyard | Entered Materials 237 | -10/Materials | Lost 3 parts (1p1n1w) 296 | -10/Materials | Discovered new exit (range 14) 320 | -10/Materials | Build established: Mutant 444 | -10/Materials | Identified exit to Mines 487 | -10/Materials | Discovered new exit (range 5) 512 | -10/Materials | Entered another Materials area 512 | -9/Materials | Evolved 2 slots: Propulsion x1, Utility x1 828 | -9/Materials | Core integrity fell below 50% 889 | -9/Materials | Destroyed 7 combat bots 905 | -9/Materials | Core integrity fell below 20% 910 | -9/Materials | Destroyed by Y-45 Defender with Beam Rifle Last Messages --------------- 00879_ K-01 Serf collects debris. 00880_ The unstable cave ceiling collapses. 00880_ K-01 Serf collects debris. 00883_ The unstable cave ceiling collapses. 00883_ K-01 Serf collects debris. 00886_ The unstable cave ceiling collapses. 00886_ Rocket Launcher destroyed. 00886_ K-01 Serf collects debris. 00891_ C-30 ARC bursts open, deploying its payload. 00891_ G-47 Trooper unfolds itself. 00891_ G-34 Mercenary unfolds itself. 00892_ K-01 Serf collects debris. 00893_ Lgt. Ion Engine destroyed. 00894_ The unstable cave ceiling collapses. 00895_ Grenade Launcher destroyed. 00895_ K-01 Serf collects debris. 00899_ The unstable cave ceiling collapses. 00901_ K-01 Serf collects debris. 00904_ The unstable cave ceiling collapses. 00904_ K-01 Serf collects debris. Map ----- +----------------------------------------------------+ | ?????????????????????????????????????????????????? | | ?????????????????????????????????????????????????? | | ?????????????????????????????????????????????????? | | ?????????????????????????????????????????????????? | | ?????????????????????????????????????????????????? | | ????????????????????????? ??????????????????? | | ??????????????????????? ?????????????????? | | ????????????????????### #?????????????????? | | ???????????????????## # ##????????????????? | | ???????????????????# ????#???????????? | | ??????????????????## " ] " ????????????????? | | ??????????????????# * ?????????????????? | | ??????????????????# "?????????????????? | | ??????????????????# ???######?????????? | | ??????????????????# !! ??## # ####??????? | | ????????????+###### #%[# ##?## ##?????? | | ??????????? =% # ##### # #?????? | | ????????????? g " """ ##?????? | | ?????????????? "% gk Y """ ## #?????? | | ?????????????????## g # k """ #??????? | | ??????????????????# ##??????? | | ??????????????????# # #??????? | | ??????????????????## = ####??????? | | ???????????????????# #############?#??????#? | | ???????????????????# #### #????????????? | | ?????????????????#?# @ T ##???????????? | | ???????????????????## ##???????????? | | ??????????????????#?# ###??????????# | | ????????????????#???# """ ###??????????? | | ???????????????????###### """ ############??? | | ????????????????????????# """ # #???? | | ???????????????????????## ! + #???? | | ?????????????????????#?## # #???? | | ??????????????????????#?#!! # """"" #???? | | ????????????????????????#*####### ## """"" #???? | | ?????????????#??????????#=###???# ## """"" #???? | | ??????????????????#????##%#?????# ## #???? | | ??????????????#?????????#!#?????# ## #???# | | ?????????????????????#??#%#?????# ############???? | | ????????????###########?#*#?#####+######?#???????? | | ????????????# ### ### #??????????? | | ????????????# """ # # ] """ #??????????? | | ????????????# """"" # # """ #??????????? | | ????????????# """"" + + """ #????????#?? | | ????????????# """"" # = # """ """ #??????????? | | ????????????# """ # ! # "R """ #??????#???? | | ????????????# ## %## """ #??????????? | | ????????????# ##[ ## #??????????? | | ????????????############ ############?#????????? | | ????????????????????#??# ^ # #????????????? | +----------------------------------------------------+ Best States ------------- Heat Dissipation 28 Energy Generation 10 Energy Capacity 250 Matter Stores 300 Matter Capacity 300 Sight Range 16 Terrain Scan Range 14 Terrain Scan Density 10 Evasion (%) 50 Item Schematics ----------------- EM Pulse Gun | -9/Materials | Scanalyzed Robot Schematics ------------------ None Fabricated ------------ Nothing Alien Tech Used ----------------- None Achievements -------------- None Challenges ------------ None Game ------ Seed TiamatSpacefoldChip Manual? 0 Play Time 00:14:14 Cumulative 6.4 hours Start 2024.04.08 @ 18:58:02 End 2024.04.08 @ 19:12:22 Sessions 1 Manual Loads 0 Difficulty Rogue Special Mode None Game No. 11 Rogue 11 Adventurer 0 Explorer 0 Win Type - Total 0 Types 0/0/0/0/0/0/0/0/0 Lore% 9 Gallery% 10 Achievement% 11 Wizard Run 0 Options --------- Layout 1 ASCII 0 Keyboard 0 Movement Mouse Keybinds 0 Fullscreen 1 Font 16/SmallcapsGlow Map View 55x38 Zoom Use 0% Tactical HUD 1 Map Filters NONE Filters NONE Steam 1 RUN: 7d525451-21f3-4365-b459-92554c178ad9